bitfinex-derivatives/quotes_ETHF0:USTF0_20210705
["timestamp","ask_amount","ask_price","bid_price","bid_amount"]
[1625484285962,14.1573,2258.9,2253.8,16.115956]
[1625484286745,14.1573,2258.9,2255.6,2.20527]
[1625484286746,2.20527,2255.7,2255.6,2.20527]
[1625484287040,2.20527,2255.9,2255.6,2.20527]
[1625484287252,14.1573,2258.9,2255.6,2.20527]
[1625484287792,14.1573,2258.9,2255.7,16.193581]
[1625484288094,16.119399,2258.8,2255.7,16.193581]
[1625484288799,2.20527,2256.4,2256.3,2.20527]
[1625484288900,16.119399,2258.8,2256.3,2.20527]
[1625484289606,16.119399,2258.8,2256.4,16.158755]
[1625484290021,14.3221,2261.1,2256.4,16.158755]
[1625484290611,14.3221,2261.1,2256.3,2.20527]
[1625484290816,2.20527,2257.3,2257.1,2.20527]
[1625484290925,2.20527,2257.3,2256.9,2.20527]
[1625484290926,5.21477,2257.3,2256.9,2.20527]
[1625484291019,5.21477,2257.3,2256.4,16.028091]
[1625484291309,5.21477,2257.3,2256.2,16.205489]
[1625484291530,3.006,2259.2,2256.2,16.205489]
[1625484291730,3.202,2259.7,2256.2,19.126989]
[1625484291961,3.202,2259.7,2256.2,2.9215]
[1625484292261,3.202,2259.7,2256.3,16.022975]
[1625484292829,2.20527,2257.0,2256.7,2.20527]
[1625484292919,3.202,2259.7,2256.7,2.20527]
[1625484293028,14.3221,2261.1,2256.7,5.32607]
[1625484293133,14.3221,2261.1,2256.8,16.029128]
[1625484294124,14.3221,2261.1,2256.8,15.529128]
[1625484294837,4.41054,2256.9,2256.8,15.529128]
[1625484294942,7.51324,2256.9,2256.8,15.529128]
[1625484295128,7.51324,2256.9,2256.8,0.559928]
[1625484295545,7.51324,2256.9,2253.8,13.7555]
[1625484295632,7.51324,2256.9,2253.0,51.3622]
[1625484296135,7.51324,2256.9,2250.5,0.9007]
[1625484296340,7.51324,2256.9,2250.6,14.9472]
[1625484296437,7.51324,2256.9,2250.6,30.978523]
[1625484296738,7.51324,2256.9,2250.6,14.9472]
[1625484296837,2.20527,2255.1,2255.0,2.20527]
[1625484296937,53.582,2258.1,2255.0,4.85747]
[1625484297038,3.2206,2257.6,2255.0,4.85747]
[1625484297137,3.2206,2257.6,2255.1,16.071355]
[1625484297990,14.3221,2261.1,2255.0,21.079589]
[1625484297991,2.7229,2259.4,2255.0,4.85747]
[1625484298101,3.3929,2260.1,2255.0,4.85747]
[1625484298341,3.3929,2260.1,2255.1,16.171601]
[1625484298905,2.20527,2256.6,2255.1,16.171601]
[1625484298997,3.4899,2258.4,2255.1,16.171601]
[1625484299092,3.4899,2258.4,2255.2,5.0]
[1625484299191,3.4899,2258.4,2255.1,18.754701]
[1625484299292,3.4899,2258.4,2255.1,2.5831]
[1625484299392,3.4899,2258.4,2255.3,16.167337]
[1625484300105,3.3929,2260.1,2255.3,16.167337]
[1625484300195,14.3221,2261.1,2255.2,16.1928]
[1625484300395,14.3221,2261.1,2255.1,2.5831]
[1625484300614,14.3221,2261.1,2255.4,16.038604]
[1625484300720,14.3221,2261.1,2256.7,38.4115]
[1625484300812,14.3221,2261.1,2256.7,41.2228]
[1625484300914,2.20527,2259.1,2259.0,2.20527]
[1625484300999,14.3221,2261.1,2259.0,5.54217]
[1625484301211,14.3221,2261.1,2259.1,16.177737]
[1625484301496,14.3221,2261.1,2259.0,5.54217]
[1625484301607,1.0,2263.0,2259.0,2.20527]
[1625484301810,1.0,2263.0,2259.1,15.993686]
[1625484302097,1.0,2263.0,2258.8,2.20527]
[1625484302308,16.078994,2262.9,2258.8,2.20527]
[1625484302402,1.0,2262.8,2258.8,2.20527]
[1625484302699,30.036633,2264.2,2257.7,2.3679]
[1625484302849,2.20527,2259.8,2258.9,18.997203]
[1625484303051,2.20527,2259.8,2258.9,2.8201]
[1625484303352,4.80997,2259.8,2259.0,16.097938]
[1625484304352,2.20527,2259.8,2258.9,3.1853]
[1625484304655,2.20527,2259.8,2259.0,16.146148]
[1625484304854,4.41054,2259.1,2259.0,16.146148]
[1625484305182,4.41054,2259.1,2258.0,3.1272]
[1625484305373,4.41054,2259.1,2256.9,13.9636]
[1625484305595,7.39984,2259.1,2252.1,5.0]
[1625484305872,7.39984,2259.1,2252.2,14.6278]
[1625484305972,7.39984,2259.1,2255.3,55.6595]
[1625484306272,7.39984,2259.1,2256.9,18.517376]
[1625484306569,4.41054,2259.1,2256.9,18.517376]
[1625484306867,2.20527,2258.4,2258.3,2.20527]
[1625484307068,2.20527,2258.4,2258.0,2.20527]
[1625484307284,2.20527,2258.4,2258.3,15.984317]
[1625484308074,2.20527,2258.4,2258.2,15.994617]
[1625484308822,2.20527,2258.4,2258.1,16.078447]
[1625484308923,4.41054,2258.4,2258.3,2.20527]
[1625484309086,2.20527,2258.4,2258.3,2.20527]
[1625484309181,2.20527,2258.4,2258.3,18.335692]
[1625484309278,2.4108,2261.5,2258.3,18.335692]
[1625484309376,4.759,2264.2,2258.3,18.335692]
[1625484309476,4.759,2264.2,2258.3,2.20527]
[1625484309586,8.0,2264.1,2258.3,2.20527]
[1625484309683,4.759,2264.2,2258.3,2.20527]
[1625484309788,4.759,2264.2,2258.4,15.953708]
[1625484310090,15.988419,2264.1,2258.3,2.20527]
[1625484310291,16.861419,2264.1,2258.3,2.20527]
[1625484310389,1.0,2264.0,2258.4,14.9099]
[1625484310640,16.917277,2264.0,2258.4,14.9099]
[1625484310744,16.917277,2264.0,2258.4,31.099629]
[1625484310944,2.20527,2259.0,2258.9,2.20527]
[1625484311045,2.20527,2259.0,2258.4,14.9099]
[1625484311545,2.20527,2259.0,2258.3,2.20527]
[1625484312847,2.20527,2259.0,2257.4,2.2298]
[1625484312948,2.20527,2257.9,2257.8,2.20527]
[1625484313647,2.689,2261.2,2257.8,2.20527]
[1625484313746,3.63945026,2274.8,2257.8,5.69557]
[1625484313846,5.0,2264.4,2257.8,21.78397]
[1625484314049,13.567,2260.5,2257.8,21.78397]
[1625484314501,3.0025,2260.8,2257.9,14.5442]
[1625484314952,2.20527,2258.1,2258.0,2.20527]
[1625484316104,2.20527,2258.3,2258.0,2.20527]
[1625484316508,2.20527,2258.3,2258.1,16.02461]
[1625484316757,14.7556,2260.7,2258.1,16.02461]
[1625484316957,2.20527,2259.2,2259.1,2.20527]
[1625484317058,2.20527,2259.2,2259.1,4.82977]
[1625484317410,2.20527,2259.2,2259.1,2.6245]
[1625484317710,2.20527,2259.2,2257.8,16.183027]
[1625484318212,2.20527,2259.2,2255.4,14.7906]
[1625484318414,2.20527,2259.2,2256.9,15.969483]
[1625484318516,2.20527,2259.2,2257.9,15.999662]
[1625484318821,2.20527,2259.2,2257.3,3.3861]
[1625484319021,2.20527,2258.4,2258.3,2.20527]
[1625484319417,2.20527,2258.4,2258.0,2.20527]
[1625484320971,2.20527,2258.1,2258.0,2.20527]
[1625484322222,2.2945,2260.9,2258.0,2.20527]
[1625484322344,14.663,2261.2,2258.0,4.69297]
[1625484322673,14.663,2261.2,2258.1,16.12108]
[1625484323024,2.20527,2258.8,2258.7,2.20527]
[1625484323975,2.20527,2258.8,2258.0,2.20527]
[1625484325078,2.20527,2258.1,2258.0,2.20527]
[1625484325443,2.8478,2260.3,2258.0,2.20527]
[1625484325543,2.8478,2260.3,2258.0,4.48707]
[1625484325746,3.5428,2260.8,2258.0,4.48707]
[1625484325843,1.22348199,2273.0,2258.0,4.48707]
[1625484326195,62.36341374,2271.5,2258.0,4.48707]
[1625484326394,6.6502,2264.2,2258.0,4.48707]
[1625484326495,0.8715,2262.5,2258.0,4.48707]
[1625484327097,2.20527,2258.5,2258.0,4.48707]
[1625484328247,2.20527,2258.5,2258.0,2.20527]
[1625484328753,5.37737,2258.5,2256.8,14.9403]
[1625484328951,5.37737,2258.5,2256.8,13.6103]
[1625484329058,4.41054,2256.9,2256.8,13.6103]
[1625484329160,4.41054,2256.9,2256.3,2.20527]
[1625484329161,6.74314,2256.9,2256.3,2.20527]
[1625484329556,6.74314,2256.9,2256.1,2.20527]
[1625484329655,6.74314,2256.9,2248.4,3.18403114]
[1625484329756,6.74314,2256.9,2252.1,0.15517572]
[1625484330308,6.74314,2256.9,2252.2,16.140461]
[1625484330405,14.0218,2256.8,2252.2,16.140461]
[1625484330506,14.0218,2256.8,2252.3,0.15538947]
[1625484330808,14.0218,2256.8,2252.4,16.130205]
[1625484331011,1.0,2256.7,2252.4,16.130205]
[1625484331107,14.0218,2256.8,2253.6,2.20527]
[1625484331108,2.20527,2253.7,2253.6,2.20527]
[1625484331308,2.20527,2253.7,2253.3,2.20527]
[1625484331406,5.08957,2253.7,2252.1,14.82]
[1625484332008,4.0387636,2253.7,2252.1,14.82]
[1625484332112,4.0387636,2253.7,2250.0,0.05]
[1625484332461,4.0387636,2253.7,2250.1,0.15666126]
[1625484332760,4.0387636,2253.7,2250.1,16.32750226]
[1625484333064,2.20527,2251.6,2251.5,2.20527]
[1625484333463,2.20527,2251.6,2250.2,0.15673904]
[1625484333913,2.551,2252.5,2250.2,0.15673904]
[1625484334013,2.8843,2253.7,2250.2,0.15673904]
[1625484334115,15.0431,2256.7,2250.0,0.05]
[1625484334217,2.9533,2255.4,2250.0,0.05]
[1625484334313,3.1262,2255.9,2250.0,0.05]
[1625484334512,3.1262,2255.9,2250.3,16.081559]
[1625484334615,2.2397,2255.9,2250.3,16.081559]
[1625484334764,14.8026,2255.8,2250.5,45.478]
[1625484334864,14.8026,2255.8,2250.5,48.9057]
[1625484335071,2.20527,2254.0,2253.9,2.20527]
[1625484335170,14.8026,2255.8,2253.9,2.20527]
[1625484335270,14.8026,2255.8,2253.9,4.93587]
[1625484335522,0.884,2258.7,2253.9,4.93587]
[1625484335925,13.5232,2258.6,2253.9,2.7306]
[1625484336226,1.0,2258.5,2253.9,2.7306]
[1625484336328,16.053452,2256.8,2253.1,2.32]
[1625484337129,4.41054,2253.2,2253.1,2.32]
[1625484337328,4.41054,2253.2,2252.9,2.20527]
[1625484337528,4.41054,2253.2,2250.7,14.8795]
[1625484337729,2.6005,2253.3,2250.7,14.8795]
[1625484337830,2.6005,2253.3,2246.6,66.5288]
[1625484337931,2.6005,2253.3,2246.6,65.1728]
[1625484338029,2.6005,2253.3,2246.7,0.15375698]
[1625484338399,2.6005,2253.3,2246.6,65.1728]
[1625484338483,14.7015,2253.2,2246.8,14.7264]
[1625484338592,14.7015,2253.2,2246.8,30.936935]
[1625484338795,14.7015,2253.2,2246.9,0.15391029]
[1625484338884,48.9776,2253.0,2246.9,0.15391029]
[1625484339083,48.9776,2253.0,2247.0,16.123282]
[1625484339285,16.098004,2252.9,2247.0,16.123282]
[1625484339484,4.41054,2247.1,2246.9,16.249908]
[1625484339784,4.41054,2247.1,2246.3,0.8798]
[1625484339785,0.46092109,2247.1,2246.3,0.8798]
[1625484339884,0.46092109,2247.1,2246.2,2.20527]
[1625484340386,0.46092109,2247.1,2246.0,4e-05]
[1625484340488,3.4974,2247.2,2242.8,14.059]
[1625484341086,3.4974,2247.2,2242.9,16.073392]
[1625484341286,3.4974,2247.2,2243.3,1.15]
[1625484341488,2.20527,2245.2,2244.7,2.20527]
[1625484341600,5.73107,2245.2,2244.7,2.20527]
[1625484341789,5.73107,2245.2,2243.4,16.244636]
[1625484342191,5.73107,2245.2,2240.9,53.9337]
[1625484342390,5.73107,2245.2,2240.2,19.1827]
[1625484342740,5.73107,2245.2,2240.7,1.15]
[1625484343140,5.73107,2245.2,2240.8,16.31975]
[1625484343448,2.20527,2244.4,2244.3,2.20527]
[1625484343996,2.20527,2244.4,2240.8,21.07875]
[1625484344144,2.20527,2244.4,2240.8,4.759]
[1625484344249,54.8262,2245.4,2240.8,4.759]
[1625484344453,54.8262,2245.4,2240.6,52.2972]
[1625484344772,54.8262,2245.4,2240.9,16.212892]
[1625484345047,54.8262,2245.4,2240.7,16.21188]
[1625484345456,54.8262,2245.4,2241.0,16.28367]
[1625484345555,2.20527,2244.5,2244.4,2.20527]
[1625484345759,2.20527,2244.5,2241.0,17.18117]
[1625484345860,2.20527,2244.5,2240.7,20.859733]
[1625484346158,2.20527,2244.5,2240.7,4.759]
[1625484346356,13.6187,2248.5,2240.7,4.759]
[1625484346458,1.0,2248.0,2244.5,2.20527]
[1625484346558,5.0,2249.8,2240.9,0.05]
[1625484346661,14.8469,2248.9,2240.9,2.7959]
[1625484346758,17.0431,2248.9,2240.9,2.7959]
[1625484347080,16.037331,2247.9,2241.0,16.048114]
[1625484347178,19.243131,2247.9,2241.0,16.048114]
[1625484347379,3.2058,2247.9,2241.0,16.048114]
[1625484347476,2.20527,2243.6,2243.5,2.20527]
[1625484347883,2.20527,2243.6,2241.0,16.988222]
[1625484347992,2.20527,2243.6,2241.0,16.100822]
[1625484348169,2.20527,2243.6,2240.4,13.805]
[1625484348272,2.20527,2243.6,2234.7,3.22794271]
[1625484348371,2.20527,2243.6,2234.8,13.6987]
[1625484348571,2.20527,2243.6,2239.6,0.2721]
[1625484348772,5.0,2243.5,2237.7,14.1931]
[1625484349272,5.0,2243.5,2234.8,13.6987]
[1625484349372,5.0,2243.5,2232.6,3.25153688]
[1625484349475,5.0,2243.5,2232.7,15.0309]
[1625484349574,4.41054,2239.4,2232.7,15.0309]
[1625484349774,4.41054,2239.4,2232.7,13.6159]
[1625484349975,4.41054,2239.4,2230.9,3.2557535]
[1625484350080,4.41054,2239.4,2234.9,14.2151]
[1625484350274,47.5439,2236.1,2234.9,14.2151]
[1625484350379,47.5439,2236.1,2234.9,12.7031]
[1625484350478,47.5439,2236.1,2235.0,16.244962]
[1625484350967,5.0,2236.0,2235.0,16.244962]
[1625484351041,47.5439,2236.1,2235.0,16.244962]
[1625484351144,47.5439,2236.1,2230.0,0.05]
[1625484351243,50.4378,2236.1,2230.0,0.05]
[1625484351533,4.41054,2230.1,2230.0,0.05]
[1625484351938,3.35033201,2230.1,2230.0,16.265508]
[1625484352244,1.14506201,2230.1,2230.0,0.05]
[1625484352337,51.28,2231.2,2230.1,3.35033201]
[1625484352441,51.28,2231.2,2230.0,0.05]
[1625484353492,4.41054,2230.1,2230.0,0.05]
[1625484353688,4.41054,2230.1,2228.3,2.20527]
[1625484353789,4.41054,2230.1,2227.9,2.20527]
[1625484354144,5.30924,2230.1,2227.9,2.20527]
[1625484354339,4.41054,2230.1,2227.9,2.20527]
[1625484354442,4.41054,2230.1,2225.4,1.00837922]
[1625484355547,2.20527,2227.0,2219.3,0.9096]
[1625484356145,2.20527,2227.2,2219.3,0.9096]
[1625484356600,14.1628,2231.0,2219.3,0.9096]
[1625484357403,16.6402,2231.0,2219.3,0.9096]
[1625484357502,16.6402,2231.0,2220.1,16.322776]
[1625484357603,2.20527,2226.9,2226.8,2.20527]
[1625484357703,3.10377,2226.9,2220.1,0.05]
[1625484358408,3.10377,2226.9,2220.2,16.267917]
[1625484358506,0.8985,2226.9,2220.2,16.267917]
[1625484358606,30.966824,2230.9,2220.2,16.267917]
[1625484359427,30.966824,2230.9,2219.4,16.281622]
[1625484359528,30.966824,2230.9,2221.6,45.3621]
[1625484359621,2.20527,2228.8,2228.0,2.20527]
[1625484359819,2.20527,2228.8,2226.1,2.6221]
[1625484360875,2.20527,2228.8,2221.6,45.3621]
[1625484361624,2.20527,2226.9,2226.8,2.20527]
[1625484361827,2.20527,2226.9,2226.6,2.20527]
[1625484362475,2.20527,2227.1,2226.6,2.20527]
[1625484363576,4.41054,2227.1,2227.0,2.20527]
[1625484363677,4.41054,2227.1,2225.9,2.2554]
[1625484363978,4.41054,2227.1,2222.0,0.9049]
[1625484364078,4.41054,2227.1,2221.7,28.8119]
[1625484364191,4.41054,2227.1,2221.7,14.3068]
[1625484364491,4.41054,2227.1,2221.6,45.3621]
[1625484364686,4.41054,2227.1,2218.0,14.1692]
[1625484364995,4.41054,2227.1,2218.0,28.5767]
[1625484365186,4.41054,2227.1,2221.8,16.413232]
[1625484365520,4.41054,2227.1,2221.7,16.333496]
[1625484365593,2.20527,2225.6,2225.3,2.20527]
[1625484365731,3.093,2229.8,2221.7,18.624696]
[1625484365831,3.093,2229.8,2221.7,2.2912]
[1625484366379,3.093,2229.8,2221.8,16.36643]
[1625484366454,3.9887,2229.8,2221.8,16.36643]
[1625484366532,3.093,2229.8,2221.8,16.36643]
[1625484366631,3.093,2229.8,2221.7,2.2912]
[1625484366731,2.3898,2230.4,2221.7,2.2912]
[1625484366934,2.3898,2230.4,2221.8,16.405775]
[1625484367033,3.0897,2230.9,2221.8,16.405775]
[1625484367133,27.7559,2231.1,2221.8,16.405775]
[1625484367232,27.7559,2231.1,2221.7,2.2912]
[1625484367435,27.7559,2231.1,2221.9,50.1171]
[1625484367634,2.20527,2227.2,2227.1,2.20527]
[1625484367936,2.6586,2229.7,2227.1,2.20527]
[1625484368046,19.077028,2229.7,2227.1,2.20527]
[1625484368238,19.077028,2229.7,2227.1,5.50307]
[1625484369593,2.20527,2229.0,2228.9,2.20527]
[1625484369789,16.418428,2229.7,2228.9,2.20527]
[1625484370640,16.418428,2229.7,2229.0,16.371284]
[1625484370841,14.0885,2235.5,2229.0,16.371284]
[1625484370941,5.0,2239.1,2229.0,16.371284]
[1625484371046,14.0734,2238.7,2229.0,16.371284]
[1625484371645,2.20527,2233.5,2231.4,4.41054]
[1625484371843,14.0734,2238.7,2231.4,4.41054]
[1625484371943,14.0734,2238.7,2231.4,20.623478]
[1625484372747,28.5287,2238.7,2231.4,20.623478]
[1625484372946,0.46331427,2237.4,2231.4,20.623478]
[1625484373600,2.20527,2235.4,2235.3,2.20527]
[1625484373804,0.46331427,2237.4,2235.3,2.20527]
[1625484373902,0.46331427,2237.4,2235.3,2.15527]
[1625484374403,0.4464821,2239.8,2235.3,2.15527]
[1625484374603,0.4464821,2239.8,2235.4,16.163307]
[1625484375418,0.4464821,2239.8,2235.3,2.15527]
[1625484375644,0.4464821,2239.8,2238.5,2.20527]
[1625484375817,0.4464821,2239.8,2238.3,2.20527]
[1625484375917,16.360798,2239.7,2235.6,3.0526]
[1625484376018,16.360798,2239.7,2235.4,16.169632]
[1625484376219,16.360798,2239.7,2235.1,16.104706]
[1625484376517,16.360798,2239.7,2235.0,2.3293]
[1625484377060,16.360798,2239.7,2235.2,16.285735]
[1625484377347,16.360798,2239.7,2235.1,16.134063]
[1625484377541,16.360798,2239.7,2233.7,3.354]
[1625484378143,16.347146,2239.8,2233.7,3.354]
[1625484378839,16.347146,2239.8,2233.0,3.2446]
[1625484379139,5.0,2239.7,2233.0,3.2446]
[1625484379339,16.347146,2239.8,2233.0,3.2446]
[1625484379738,4.41054,2233.1,2233.0,3.2446]
[1625484382197,46.1019,2235.6,2233.0,3.2446]
[1625484382494,0.8951,2238.7,2233.0,3.2446]
[1625484382593,14.9518,2238.9,2233.0,3.2446]
[1625484382693,10.0,2520.0,2233.0,3.2446]
[1625484382796,15.489859,2239.9,2233.0,3.2446]
[1625484383446,15.489859,2239.9,2233.1,16.344108]
[1625484383746,2.20527,2235.0,2234.9,2.20527]
[1625484383845,2.20527,2235.0,2234.7,2.20527]
[1625484383945,2.20527,2235.0,2233.0,3.2446]
[1625484384097,2.20527,2235.0,2233.1,16.124459]
[1625484384301,2.20527,2235.0,2233.1,18.782359]
[1625484384398,2.20527,2235.0,2233.1,2.6579]
[1625484385301,2.20527,2235.0,2232.3,2.6045]
[1625484385851,4.41054,2232.4,2232.3,2.6045]
[1625484385951,2.5466,2236.2,2232.3,2.6045]
[1625484386051,2.2383,2237.0,2232.3,2.6045]
[1625484387764,4.41054,2232.4,2232.3,2.6045]
[1625484387864,4.41054,2232.4,2232.2,2.20527]
[1625484388067,4.41054,2232.4,2231.6,2.20527]
[1625484389293,4.41054,2232.4,2211.5,2.29064651]
[1625484389384,4.41054,2232.4,2222.7,1.1]
[1625484389482,4.41054,2232.4,2225.4,14.4868]
[1625484389788,2.20527,2231.0,2230.9,2.20527]
[1625484389979,2.20527,2231.0,2225.7,5.0]
[1625484390071,0.586651,2234.9,2227.4,16.332949]
[1625484390376,14.9886,2234.8,2227.5,5.0]
[1625484390635,0.586651,2234.9,2227.5,5.0]
[1625484390837,0.586651,2234.9,2227.6,16.344284]
[1625484391388,0.586651,2234.9,2227.3,30.433663]
[1625484391586,3.977451,2234.9,2227.3,30.433663]
[1625484391787,3.977451,2234.9,2231.5,2.20527]
[1625484392051,3.977451,2234.9,2231.5,5.22907]
[1625484392691,3.977451,2234.9,2231.5,3.0238]
[1625484393045,0.586651,2234.9,2231.5,3.0238]
[1625484393146,0.351927,2235.5,2231.5,3.0238]
[1625484393764,2.20527,2232.8,2232.4,2.20527]
[1625484393850,2.20527,2232.8,2232.4,5.45197]
[1625484394070,0.351927,2235.5,2232.4,5.45197]
[1625484394551,0.351927,2235.5,2232.5,16.237001]
[1625484395457,0.351927,2235.5,2231.5,3.0238]
[1625484395557,3.485927,2235.5,2230.7,2.6374]
[1625484395859,2.20527,2233.3,2233.2,2.20527]
[1625484396059,2.20527,2233.3,2232.5,2.9422]
[1625484397064,2.20527,2233.3,2230.7,2.6374]
[1625484397577,2.20527,2233.3,2227.1,5.0]
[1625484397678,2.20527,2233.3,2230.8,16.162025]
[1625484397781,2.20527,2232.8,2232.7,2.20527]
[1625484397881,2.20527,2232.8,2232.7,5.41997]
[1625484397981,14.4153,2236.2,2232.7,5.41997]
[1625484398082,2.6424,2236.3,2232.7,5.41997]
[1625484398184,8.46248089,2241.4,2232.7,5.41997]
[1625484398280,5.0,2238.8,2232.7,5.41997]
[1625484399532,16.24033,2237.2,2232.7,5.41997]
[1625484399733,2.20527,2233.3,2233.2,2.20527]
[1625484399835,2.20527,2233.3,2233.2,5.64497]
[1625484400537,2.8855,2236.9,2233.2,5.64497]
[1625484400885,16.24033,2237.2,2233.2,5.64497]
[1625484401486,16.24033,2237.2,2233.3,16.108331]
[1625484401850,2.20527,2235.7,2235.5,2.20527]
[1625484402588,16.24033,2237.2,2235.5,2.20527]
[1625484403791,2.20527,2235.9,2235.8,2.20527]
[1625484403892,2.20527,2235.9,2235.8,4.63937]
[1625484403993,16.24033,2237.2,2235.8,4.63937]
[1625484405795,16.24033,2237.2,2236.1,2.20527]
[1625484407448,5.0,2238.3,2236.1,2.20527]
[1625484407800,2.20527,2237.0,2236.9,2.20527]
[1625484408199,8.0,2239.9,2236.9,2.20527]
[1625484408400,5.0,2239.8,2236.9,2.20527]
[1625484409713,5.0,2239.8,2237.0,16.354447]
[1625484409813,2.20527,2238.6,2238.5,2.20527]
[1625484409913,42.2996,2241.0,2238.5,4.93657]
[1625484410012,5.0,2240.9,2238.5,4.93657]
[1625484411025,1.0,2240.8,2238.5,4.93657]
[1625484411826,2.20527,2239.0,2238.9,2.20527]
[1625484415148,2.20527,2239.0,2236.6,2.4033]
[1625484415248,4.80957,2239.0,250.0,100.0]
[1625484415357,4.80957,2239.0,2234.4,1.1]
[1625484415554,4.80957,2239.0,2228.9,8.0]
[1625484415653,9.80957,2239.0,2228.9,8.0]
[1625484415756,4.80957,2239.0,2228.9,8.0]
[1625484415854,2.20527,2236.9,2236.8,2.20527]
[1625484415956,2.20527,2237.1,2236.8,2.20527]
[1625484416057,2.6043,2239.0,2236.8,5.73557]
[1625484416456,14.8021,2240.8,2236.8,5.73557]
[1625484416559,5.05,2240.0,2236.8,5.73557]
[1625484416757,0.05,2240.0,2236.8,5.73557]
[1625484417863,2.20527,2237.7,2237.5,2.20527]
[1625484417965,2.4781,2239.8,2237.5,2.20527]
[1625484418063,1.0,2239.7,2237.5,2.20527]
[1625484418663,1.05,2240.0,2237.5,2.20527]
[1625484419072,0.05,2240.0,2237.3,2.20527]
[1625484419170,3.257,2240.0,2237.3,2.20527]
[1625484419268,5.0,2239.9,2237.3,2.20527]
[1625484419669,21.16297,2239.9,2237.3,2.20527]
[1625484419770,1.0,2239.8,2234.5,14.0237]
[1625484419883,2.20527,2237.1,2237.0,2.20527]
[1625484420284,2.20527,2237.1,2235.6,2.565]
[1625484421287,2.20527,2237.1,2234.5,14.0237]
[1625484421397,2.20527,2237.1,2232.8,14.7238]
[1625484421495,2.20527,2237.1,2234.2,5.0]
[1625484421588,2.20527,2237.1,2232.8,14.7238]
[1625484421689,5.0,2237.0,2232.8,14.7238]
[1625484421789,5.0,2237.0,2231.1,13.8557]
[1625484421890,4.62497,2237.1,2231.1,13.8057]
[1625484421987,2.20527,2235.0,2234.9,2.20527]
[1625484422849,2.4197,2237.1,2234.9,2.20527]
[1625484422953,2.6021,2236.0,2234.9,2.20527]
[1625484423145,2.6021,2236.0,2231.3,15.1779]
[1625484423255,2.6021,2236.0,2231.3,14.0779]
[1625484423599,13.664,2237.7,2231.4,5.0]
[1625484423782,13.664,2237.7,2231.5,1.1]
[1625484423944,2.20527,2237.2,2237.0,2.20527]
[1625484424062,2.20527,2237.2,2237.0,5.28437]
[1625484424642,1.57304,2237.4,2237.0,5.28437]
[1625484425793,5.0,2239.7,2237.0,5.28437]
[1625484425893,1.1,2243.1,2237.0,5.28437]
[1625484426006,2.20527,2238.3,2238.2,4.56667]
[1625484427300,0.8836,2243.8,2238.2,4.56667]
[1625484427503,55.635,2241.9,2238.2,4.56667]
[1625484427599,22.2958,2241.8,2238.2,4.56667]
[1625484427699,14.2958,2241.8,2238.2,4.56667]
[1625484428000,2.20527,2239.4,2239.3,2.20527]
[1625484428399,47.635,2241.9,2239.3,2.20527]
[1625484429153,1.0,2242.0,2239.3,2.20527]
[1625484429301,13.7865,2243.7,2239.3,2.20527]
[1625484429402,5.0,2243.6,2239.3,2.20527]
[1625484429705,8.0,2243.5,2239.3,2.20527]
[1625484429804,5.0,2243.4,2239.3,2.20527]
[1625484430008,2.20527,2240.2,2239.9,4.41054]
[1625484431106,13.0,2243.4,2239.9,4.41054]
[1625484431207,1.0,2242.2,2239.9,2.20527]
[1625484431509,1.0,2242.1,2238.9,3.5506]
[1625484431608,1.0,2242.1,2238.2,2.3614]
[1625484431710,2.2806,2240.2,2236.1,6.1]
[1625484432009,5.18177,2239.2,2236.2,2.3068]
[1625484432144,5.18177,2239.2,2232.6,1.77370514]
[1625484432445,5.18177,2239.2,2232.7,14.9697]
[1625484432645,10.18177,2239.2,2232.7,14.9697]
[1625484432739,10.18177,2239.2,2234.1,54.0823]
[1625484432813,10.18177,2239.2,2234.2,16.287186]
[1625484432814,11.18177,2239.2,2234.2,16.287186]
[1625484433379,11.18177,2239.2,2232.8,16.213467]
[1625484433466,16.10813,2239.1,2232.8,16.213467]
[1625484433571,6.0,2239.0,2233.3,16.202059]
[1625484433663,6.0,2239.0,2234.3,16.199926]
[1625484433863,16.172277,2238.9,2234.3,16.199926]
[1625484433964,2.20527,2236.5,2236.4,2.20527]
[1625484434266,2.20527,2236.5,2236.2,2.20527]
[1625484434370,2.20527,2236.5,2230.3,1.77560404]
[1625484434469,2.20527,2236.5,2232.2,1.1]
[1625484434975,16.295055,2236.4,2232.2,1.1]
[1625484435219,16.295055,2236.4,2232.8,16.286446]
[1625484435316,2.20527,2236.5,2232.8,16.286446]
[1625484435520,2.20527,2236.5,2232.3,5.0]
[1625484435718,2.20527,2236.5,2232.4,16.291767]
[1625484435823,2.20527,2236.5,2232.9,16.381563]
[1625484436020,2.20527,2235.2,2235.0,2.20527]
[1625484436122,2.20527,2235.2,2235.0,5.50727]
[1625484436321,3.09407,2235.2,2235.0,5.50727]
[1625484436573,2.20527,2235.2,2235.0,5.50727]
[1625484437071,1.0,2237.3,2235.0,5.50727]
[1625484437987,2.20527,2235.8,2235.7,2.20527]
[1625484438897,2.20527,2235.8,2235.5,2.20527]
[1625484439000,3.20527,2235.8,2235.5,2.20527]
[1625484439298,2.20527,2235.8,2235.5,2.20527]
[1625484439698,2.20527,2235.8,2235.5,7e-05]